fUST/lending_fUST_20250814
["ID","MTS","AMOUNT","RATE_DAILY","PERIOD"]
[379070378,1755115854428,-460.0,0.00019452,2]
[379070379,1755115854438,-460.0,0.00019452,2]
[379070380,1755115854447,-460.0,0.00019452,2]
[379070381,1755115854456,-460.0,0.00019452,2]
[379070382,1755115854466,-2530.94,0.00019452,2]
[379070383,1755115854476,-1829.45,0.00019452,2]
[379070384,1755115854486,-404.46694935,0.00019452,2]
[379070385,1755115854495,-460.0,0.00019452,2]
[379070386,1755115854504,-573.95,0.00019452,2]
[379070387,1755115854514,-460.0,0.00019452,2]
[379070388,1755115854524,-460.0,0.00019452,2]
[379070389,1755115854533,-460.0,0.00019452,2]
[379070390,1755115854543,-460.0,0.00019452,2]
[379070391,1755115854552,-1224.78,0.00019452,2]
[379070392,1755115854561,-1547.71,0.00019452,2]
[379070393,1755115854571,-737.39,0.00019452,2]
[379070394,1755115854580,-460.0,0.00019452,2]
[379070395,1755115854590,-460.0,0.00019452,2]
[379070396,1755115854599,-460.0,0.00019452,2]
[379070397,1755115854609,-1811.96,0.00019452,2]
[379070398,1755115854619,-460.0,0.00019452,2]
[379070399,1755115854628,-460.0,0.00019452,2]
[379070400,1755115854638,-460.0,0.00019452,2]
[379070401,1755115854647,-460.0,0.00019452,2]
[379070402,1755115854657,-460.0,0.00019452,2]
[379070403,1755115854667,-460.0,0.00019452,2]
[379070404,1755115854676,-460.0,0.00019452,2]
[379070405,1755115854686,-460.0,0.00019452,2]
[379070406,1755115854695,-460.0,0.00019452,2]
[379070407,1755115854705,-460.0,0.00019452,2]
[379070408,1755115854715,-460.0,0.00019452,2]
[379070409,1755115854725,-460.0,0.00019452,2]
[379070410,1755115854735,-460.0,0.00019452,2]
[379070411,1755115854745,-1053.5,0.00019452,2]
[379070412,1755115854754,-1353.67,0.00019452,2]
[379070413,1755115854764,-460.0,0.00019452,2]
[379070414,1755115854773,-460.0,0.00019452,2]
[379070415,1755115854783,-3269.31,0.00019452,2]
[379070416,1755115854793,-3653.82,0.00019452,2]
[379070417,1755115854803,-460.0,0.00019452,2]
[379070418,1755115854812,-460.0,0.00019452,2]
[379070419,1755115854822,-460.0,0.00019452,2]
[379070420,1755115854832,-460.0,0.00019452,2]
[379070421,1755115854842,-460.0,0.00019452,2]
[379070422,1755115854851,-453.09686162,0.00019452,2]
[379070423,1755115854861,-472.6,0.00019452,2]
[379070424,1755115854870,-854.33,0.00019452,2]
[379070425,1755115854880,-460.0,0.00019452,2]
[379070426,1755115854889,-3963.71,0.00019452,2]
[379070427,1755115854899,-460.0,0.00019452,2]
[379070428,1755115854909,-460.0,0.00019452,2]
[379070429,1755115854919,-460.0,0.00019452,2]
[379070430,1755115854928,-460.0,0.00019452,2]
[379070431,1755115854938,-460.0,0.00019452,2]
[379070432,1755115854948,-460.0,0.00019452,2]
[379070433,1755115854958,-746.01,0.00019452,2]
[379070434,1755115854967,-460.0,0.00019452,2]
[379070435,1755115854977,-661.67,0.00019452,2]
[379070436,1755115854986,-201.65488289,0.00019452,2]
[379070437,1755115854996,-635.51,0.00019452,2]
[379070438,1755115855006,-2762.44,0.00019452,2]
[379070439,1755115855016,-460.0,0.00019452,2]
[379070440,1755115855026,-460.0,0.00019452,2]
[379070441,1755115855035,-770.63,0.00019452,2]
[379070442,1755115855045,-950.59,0.00019452,2]
[379070443,1755115855055,-460.0,0.00019452,2]
[379070444,1755115855065,-1663.54,0.00019452,2]
[379070445,1755115855075,-460.0,0.00019452,2]
[379070446,1755115855085,-460.0,0.00019452,2]
[379070447,1755115855095,-460.0,0.00019452,2]
[379070448,1755115855104,-1920.17,0.00019452,2]
[379070449,1755115855114,-823.48,0.00019452,2]
[379070450,1755115855124,-460.0,0.00019452,2]
[379070451,1755115855133,-480.24,0.00019452,2]
[379070452,1755115855143,-852.98,0.00019452,2]
[379070453,1755115855152,-564.18,0.00019452,2]
[379070454,1755115855162,-460.0,0.00019452,2]
[379070455,1755115855175,-786.91,0.00019452,2]
[379070456,1755115855184,-1415.94,0.00019452,2]
[379070457,1755115855193,-460.0,0.00019452,2]
[379070458,1755115855203,-460.0,0.00019452,2]
[379070459,1755115855214,-460.0,0.00019452,2]
[379070460,1755115855223,-460.0,0.00019452,2]
[379070461,1755115855233,-460.0,0.00019452,2]
[379070462,1755115855244,-1035.39,0.00019452,2]
[379070463,1755115855253,-2050.41,0.00019452,2]
[379070464,1755115855263,-460.0,0.00019452,2]
[379070465,1755115855273,-179.329244,0.00019452,2]
[379070466,1755115855283,-460.0,0.00019452,2]
[379070467,1755115855293,-179.329244,0.00019452,2]
[379070468,1755115855303,-179.329244,0.00019452,2]
[379070469,1755115855313,-460.0,0.00019452,2]
[379070470,1755115855322,-460.0,0.00019452,2]
[379070471,1755115855332,-460.0,0.00019452,2]
[379070472,1755115855342,-1312.86,0.00019452,2]
[379070473,1755115855351,-460.0,0.00019452,2]
[379070474,1755115855361,-460.0,0.00019452,2]
[379070475,1755115855371,-179.329244,0.00019452,2]
[379070476,1755115855380,-460.0,0.00019452,2]
[379070477,1755115855389,-179.329244,0.00019452,2]
[379070478,1755115855399,-179.329244,0.00019452,2]
[379070479,1755115855409,-757.19,0.00019452,2]
[379070480,1755115855419,-1767.5,0.00019452,2]
[379070481,1755115855428,-460.0,0.00019452,2]
[379070482,1755115855438,-596.07,0.00019452,2]
[379070483,1755115855447,-1225.81,0.00019452,2]
[379070484,1755115855457,-460.0,0.00019452,2]
[379070485,1755115855467,-1655.44,0.00019452,2]
[379070486,1755115855477,-1021.93,0.00019452,2]
[379070487,1755115855488,-509.79,0.00019452,2]
[379070488,1755115855498,-460.0,0.00019452,2]
[379070489,1755115855508,-460.0,0.00019452,2]
[379070490,1755115855517,-460.0,0.00019452,2]
[379070491,1755115855527,-1703.22,0.00019452,2]
[379070492,1755115855536,-460.0,0.00019452,2]
[379070493,1755115855546,-460.0,0.00019452,2]
[379070494,1755115855556,-460.0,0.00019452,2]
[379070495,1755115855566,-460.0,0.00019452,2]
[379070496,1755115855576,-151.724719,0.00019452,2]
[379070497,1755115855585,-460.0,0.00019452,2]
[379070498,1755115855595,-791.06,0.00019452,2]
[379070499,1755115855604,-460.0,0.00019452,2]
[379070500,1755115855613,-460.0,0.00019452,2]
[379070501,1755115855623,-4058.25,0.00019452,2]
[379070502,1755115855632,-460.0,0.00019452,2]
[379070503,1755115855642,-460.0,0.00019452,2]
[379070504,1755115855652,-460.0,0.00019452,2]
[379070505,1755115855662,-266.25833242,0.00019452,2]
[379070506,1755115855672,-460.0,0.00019452,2]
[379070507,1755115855682,-460.0,0.00019452,2]
[379070508,1755115855692,-460.0,0.00019452,2]
[379070509,1755115855702,-460.0,0.00019452,2]
[379070510,1755115855712,-460.0,0.00019452,2]
[379070511,1755115855722,-2019.38,0.00019452,2]
[379070512,1755115855732,-460.0,0.00019452,2]
[379070513,1755115855741,-460.0,0.00019452,2]
[379070514,1755115855752,-460.0,0.00019452,2]
[379070515,1755115855762,-460.0,0.00019452,2]
[379070516,1755115855773,-6700.12,0.00019452,2]
[379070517,1755115855783,-460.0,0.00019452,2]
[379070518,1755115855792,-460.0,0.00019452,2]
[379070519,1755115855802,-460.0,0.00019452,2]
[379070520,1755115855812,-280.59169717,0.00019452,2]
[379070521,1755115855821,-460.0,0.00019452,2]
[379070522,1755115855831,-1104.55,0.00019452,2]
[379070523,1755115855840,-460.0,0.00019452,2]
[379070524,1755115855850,-684.95,0.00019452,2]
[379070525,1755115855860,-460.0,0.00019452,2]
[379070526,1755115855870,-460.0,0.00019452,2]
[379070527,1755115855880,-460.0,0.00019452,2]
[379070528,1755115855890,-1758.47,0.00019452,2]
[379070529,1755115855900,-460.0,0.00019452,2]
[379070530,1755115855910,-460.0,0.00019452,2]
[379070531,1755115856089,-460.0,0.00019452,2]
[379070532,1755115856099,-827.82,0.00019452,2]
[379070533,1755115856109,-460.0,0.00019452,2]
[379070534,1755115856119,-460.0,0.00019452,2]
[379070535,1755115856128,-460.0,0.00019452,2]
[379070536,1755115856137,-460.0,0.00019452,2]
[379070537,1755115856147,-460.0,0.00019452,2]
[379070538,1755115856156,-11030.84,0.00019452,2]
[379070539,1755115856169,-460.0,0.00019452,2]
[379070540,1755115856179,-1671.8,0.00019452,2]
[379070541,1755115856189,-460.0,0.00019452,2]
[379070542,1755115856199,-460.0,0.00019452,2]
[379070543,1755115856210,-400.0,0.00019452,2]
[379070544,1755115856220,-460.0,0.00019452,2]
[379070545,1755115856229,-460.0,0.00019452,2]
[379070546,1755115856239,-460.0,0.00019452,2]
[379070547,1755115856249,-460.0,0.00019452,2]
[379070548,1755115856259,-460.0,0.00019452,2]
[379070549,1755115856268,-1219.873782,0.00019452,2]
[379070550,1755115856278,-1219.873782,0.00019452,2]
[379070551,1755115856288,-173.45004126,0.00019452,2]
[379070552,1755115856297,-762.63,0.00019452,2]
[379070553,1755115856306,-1219.873782,0.00019452,2]
[379070554,1755115856316,-460.0,0.00019452,2]
[379070555,1755115856325,-460.0,0.00019452,2]
[379070556,1755115856335,-8448.68,0.00019452,2]
[379070557,1755115856344,-460.0,0.00019452,2]
[379070558,1755115856354,-460.0,0.00019452,2]
[379070559,1755115856363,-691.76,0.00019452,2]
[379070560,1755115856373,-460.0,0.00019452,2]
[379070561,1755115856382,-1219.873782,0.00019452,2]
[379070562,1755115856391,-1219.873782,0.00019452,2]
[379070563,1755115856401,-1219.873782,0.00019452,2]
[379070564,1755115856411,-460.0,0.00019452,2]
[379070565,1755115856420,-3051.43,0.00019452,2]
[379070566,1755115856429,-460.0,0.00019452,2]
[379070567,1755115856439,-460.0,0.00019452,2]
[379070568,1755115856448,-460.0,0.00019452,2]
[379070569,1755115856457,-460.0,0.00019452,2]
[379070570,1755115856467,-460.0,0.00019452,2]
[379070571,1755115856476,-460.0,0.00019452,2]
[379070572,1755115856485,-460.0,0.00019452,2]
[379070573,1755115856495,-460.0,0.00019452,2]
[379070574,1755115856506,-460.0,0.00019452,2]
[379070575,1755115856515,-460.0,0.00019452,2]
[379070576,1755115856524,-460.0,0.00019452,2]
[379070577,1755115856534,-460.0,0.00019452,2]
[379070578,1755115856543,-460.0,0.00019452,2]
[379070579,1755115856553,-460.0,0.00019452,2]
[379070580,1755115856563,-460.0,0.00019452,2]
[379070581,1755115856572,-460.0,0.00019452,2]
[379070582,1755115856582,-500.0,0.00019452,2]
[379070583,1755115856591,-500.0,0.00019473,2]
[379070584,1755115856601,-500.0,0.00019473,2]
[379070585,1755115856611,-500.0,0.00019473,2]
[379070586,1755115856621,-500.0,0.00019473,2]
[379070587,1755115856630,-500.0,0.00019473,2]
[379070588,1755115856640,-500.0,0.00019473,2]
[379070589,1755115856649,-500.0,0.00019473,2]
[379070590,1755115856659,-500.0,0.00019473,2]
[379070591,1755115856669,-500.0,0.00019473,2]
[379070592,1755115856678,-500.0,0.00019473,2]
[379070593,1755115856688,-500.0,0.00019473,2]
[379070594,1755115856697,-501.00395149,0.00019473,2]
[379070595,1755115856707,-309.36013429,0.00019473,2]
[379070596,1755115856717,-500.0,0.00019473,2]
[379070597,1755115856727,-500.0,0.00019473,2]
[379070598,1755115856737,-500.0,0.00019473,2]
[379070599,1755115856746,-552.65656985,0.00019473,2]
[379070600,1755115856757,-500.0,0.00019473,2]
[379070601,1755115856766,-258.54619957,0.00019473,2]
[379070602,1755115856775,-186.68825619,0.00019473,2]
[379070603,1755115856784,-500.0,0.00019473,2]
[379070604,1755115856794,-500.0,0.00019473,2]
[379070605,1755115856804,-500.0,0.00019473,2]
[379070606,1755115856814,-158.51894076,0.00019473,2]
[379070607,1755115856823,-500.0,0.00019473,2]
[379070608,1755115856833,-500.0,0.00019473,2]
[379070609,1755115856842,-500.0,0.00019473,2]
[379070610,1755115856852,-500.0,0.00019473,2]
[379070611,1755115856862,-500.25210759,0.00019473,2]
[379070612,1755115856872,-500.0,0.00019473,2]
[379070613,1755115856882,-500.0,0.00019473,2]
[379070614,1755115856891,-411.46417417,0.00019473,2]
[379070615,1755115856900,-500.0,0.00019473,2]
[379070616,1755115856910,-158.46419246,0.00019473,2]
[379070617,1755115856920,-160.10329636,0.00019473,2]
[379070618,1755115856930,-500.0,0.00019473,2]
[379070619,1755115856939,-500.0,0.00019473,2]
[379070620,1755115856948,-500.0,0.00019473,2]
[379070621,1755115856959,-500.0,0.00019473,2]
[379070622,1755115856969,-500.0,0.00019473,2]
[379070623,1755115856978,-500.0,0.00019473,2]
[379070624,1755115856987,-500.0,0.00019473,2]
[379070625,1755115856996,-500.0,0.00019473,2]
[379070626,1755115857006,-500.0,0.00019473,2]
[379070627,1755115857016,-500.0,0.00019473,2]
[379070628,1755115857026,-500.0,0.00019473,2]
[379070629,1755115857036,-206.41950611,0.00019473,2]
[379070630,1755115857045,-500.0,0.00019473,2]
[379070631,1755115857054,-500.0,0.00019473,2]
[379070632,1755115857063,-500.0,0.00019473,2]
[379070633,1755115857073,-229.09553761,0.00019473,2]
[379070634,1755115857083,-500.0,0.00019473,2]
[379070635,1755115857092,-500.0,0.00019473,2]
[379070636,1755115857102,-500.0,0.00019473,2]
[379070637,1755115857112,-500.0,0.00019473,2]
[379070638,1755115857121,-500.0,0.00019473,2]
[379070639,1755115857131,-500.0,0.00019473,2]
[379070640,1755115857140,-500.0,0.00019473,2]
[379070641,1755115857150,-500.0,0.00019473,2]
[379070642,1755115857159,-500.45891182,0.00019473,2]
[379070643,1755115857172,-500.0,0.00019473,2]
[379070644,1755115857181,-500.0,0.00019473,2]
[379070645,1755115857190,-500.0,0.00019473,2]
[379070646,1755115857200,-349.32952212,0.00019473,2]
[379070647,1755115857210,-500.0,0.00019473,2]
[379070648,1755115857219,-500.0,0.00019473,2]
[379070649,1755115857228,-500.0,0.00019473,2]
[379070650,1755115857238,-500.0,0.00019473,2]
[379070651,1755115857249,-500.0,0.00019473,2]
[379070652,1755115857258,-500.0,0.00019473,2]
[379070653,1755115857267,-632.49062249,0.00019473,2]
[379070654,1755115857277,-525.32275977,0.00019473,2]
[379070655,1755115857287,-500.0,0.00019473,2]
[379070656,1755115857296,-527.21987718,0.00019473,2]
[379070657,1755115857305,-500.0,0.00019473,2]
[379070658,1755115857315,-500.0,0.00019473,2]
[379070659,1755115857324,-500.0,0.00019473,2]
[379070660,1755115857333,-500.0,0.00019473,2]
[379070661,1755115857343,-500.0,0.00019473,2]
[379070662,1755115857352,-500.0,0.00019473,2]
[379070663,1755115857361,-151.0,0.00019473,2]
[379070664,1755115857370,-1219.873782,0.00019473,2]
[379070665,1755115857379,-1219.873782,0.00019473,2]
[379070666,1755115857388,-413.0,0.00019488,2]
[379070667,1755115857397,-17860.25944909,0.000195,2]
[379070668,1755115857406,-168.0,0.00019516,2]
[379070669,1755115857415,-168.0,0.00019551,2]
[379070670,1755115857424,-168.0,0.00019619,2]
[379070671,1755115857434,-2151.0,0.00019652,2]
[379070672,1755115857443,-408.0,0.00019669,2]
[379070673,1755115857453,-566.55677288,0.00019721,2]
[379070674,1755115857462,-1000.0,0.00019721,2]
[379070675,1755115857471,-394.80841559,0.00019721,2]
[379070676,1755115857481,-1005.16945793,0.00019721,2]
[379070677,1755115857490,-500.0,0.00019721,2]
[379070678,1755115857499,-1000.0,0.00019721,2]
[379070679,1755115857509,-500.0,0.00019721,2]
[379070680,1755115857518,-500.0,0.00019721,2]
[379070681,1755115857528,-1000.0,0.00019721,2]
[379070682,1755115857537,-1000.0,0.00019721,2]
[379070683,1755115857546,-1000.0,0.00019721,2]
[379070684,1755115857555,-725.50336855,0.00019721,2]
[379070685,1755115857565,-200.0,0.00019725,2]
[379070686,1755115857574,-200.49264809,0.00019725,2]
[379070687,1755115857583,-151.0,0.00019726,2]
[379070688,1755115857592,-198.0,0.00019726,2]
[379070689,1755115857602,-151.0,0.00019726,2]
[379070690,1755115857611,-198.59317852,0.00019726,2]
[379070691,1755115857620,-151.0,0.00019726,2]
[379070692,1755115857630,-208.18217949,0.00019726,2]
[379070693,1755115857640,-500.0,0.00019726,2]
[379070694,1755115857649,-151.0,0.00019726,2]
[379070695,1755115857658,-198.0,0.00019726,2]
[379070696,1755115857668,-460.0,0.00019726,2]
[379070697,1755115857677,-460.0,0.00019726,2]
[379070698,1755115857687,-327.25950545,0.00019726,2]
[379070699,1755115857696,-460.0,0.00019726,2]
[379070700,1755115857705,-732.95,0.00019726,2]
[379070701,1755115857714,-460.0,0.00019726,2]
[379070702,1755115857723,-460.0,0.00019726,2]
[379070703,1755115857732,-1719.5,0.00019726,2]
[379070704,1755115857741,-460.0,0.00019726,2]
[379070705,1755115857750,-200.30039571,0.00019726,2]
[379070706,1755115857761,-469.89807612,0.00019726,2]
[379070707,1755115857770,-469.56247493,0.00019726,2]
[379070708,1755115857779,-331.18271432,0.00019726,2]
[379070709,1755115857790,-460.0,0.00019726,2]
[379070710,1755115857799,-460.0,0.00019726,2]
[379070711,1755115857809,-460.0,0.00019726,2]
[379070712,1755115857818,-460.0,0.00019726,2]
[379070713,1755115857827,-662.8,0.00019726,2]
[379070714,1755115857836,-460.0,0.00019726,2]
[379070715,1755115857845,-460.0,0.00019726,2]
[379070716,1755115857855,-460.0,0.00019726,2]
[379070717,1755115857864,-460.0,0.00019726,2]
[379070718,1755115857874,-578.27,0.00019726,2]
[379070719,1755115857883,-460.0,0.00019726,2]
[379070720,1755115857892,-462.01,0.00019726,2]
[379070721,1755115857901,-460.0,0.00019726,2]
[379070722,1755115857911,-469.49,0.00019726,2]
[379070723,1755115857920,-460.0,0.00019726,2]
[379070724,1755115857929,-460.0,0.00019726,2]
[379070725,1755115857938,-460.0,0.00019726,2]
[379070726,1755115857948,-460.0,0.00019726,2]
[379070727,1755115857958,-460.0,0.00019726,2]
[379070728,1755115857970,-460.0,0.00019726,2]
[379070729,1755115857984,-460.0,0.00019726,2]
[379070730,1755115857999,-460.0,0.00019726,2]
[379070731,1755115858013,-460.0,0.00019726,2]
[379070732,1755115858024,-460.0,0.00019726,2]
[379070733,1755115858038,-460.0,0.00019726,2]
[379070734,1755115858050,-460.0,0.00019726,2]
[379070735,1755115858063,-460.0,0.00019726,2]
[379070736,1755115858077,-460.0,0.00019726,2]
[379070737,1755115858089,-475.12,0.00019726,2]
[379070738,1755115858102,-460.0,0.00019726,2]
[379070739,1755115858116,-460.0,0.00019726,2]
[379070740,1755115858129,-460.0,0.00019726,2]
[379070741,1755115858142,-460.0,0.00019726,2]
[379070742,1755115858155,-460.0,0.00019726,2]
[379070743,1755115858170,-460.0,0.00019726,2]
[379070744,1755115858186,-585.4,0.00019726,2]
[379070745,1755115858199,-460.0,0.00019726,2]
[379070746,1755115858212,-362.74854861,0.00019726,2]
[379070747,1755115858223,-460.0,0.00019726,2]
[379070748,1755115858234,-701.63,0.00019726,2]
[379070749,1755115858247,-526.38539072,0.00019726,2]
[379070750,1755115858260,-460.0,0.00019726,2]
[379070751,1755115858274,-460.0,0.00019726,2]
[379070752,1755115858288,-460.0,0.00019726,2]
[379070753,1755115858301,-460.0,0.00019726,2]
[379070754,1755115858315,-460.0,0.00019726,2]
[379070755,1755115858329,-460.0,0.00019726,2]
[379070756,1755115858344,-460.0,0.00019726,2]
[379070757,1755115858355,-460.0,0.00019726,2]
[379070758,1755115858365,-151.0,0.00019726,2]
[379070759,1755115858376,-151.0,0.00019726,2]
[379070760,1755115858387,-151.0,0.00019726,2]
[379070761,1755115858402,-151.0,0.00019726,2]
[379070762,1755115858415,-151.0,0.00019726,2]
[379070763,1755115858427,-506.15,0.00019726,2]
[379070764,1755115858439,-554.1256784,0.00019726,2]
[379070765,1755115858450,-151.0,0.00019726,2]
[379070766,1755115858464,-151.0,0.00019726,2]
[379070767,1755115858475,-151.0,0.00019726,2]
[379070768,1755115858486,-772.37,0.00019726,2]
[379070769,1755115858497,-460.0,0.00019726,2]
[379070770,1755115858509,-460.0,0.00019726,2]
[379070771,1755115858520,-460.0,0.00019726,2]
[379070772,1755115858531,-460.0,0.00019726,2]
[379070773,1755115858543,-460.0,0.00019726,2]
[379070774,1755115858554,-460.0,0.00019726,2]
[379070775,1755115858566,-460.0,0.00019726,2]
[379070776,1755115858577,-460.0,0.00019726,2]
[379070777,1755115858589,-460.0,0.00019726,2]
[379070778,1755115858600,-460.0,0.00019726,2]
[379070779,1755115858611,-460.0,0.00019726,2]
[379070780,1755115858623,-467.8024199,0.00019726,2]
[379070781,1755115858634,-460.0,0.00019726,2]
[379070782,1755115858645,-460.0,0.00019726,2]
[379070783,1755115858657,-460.0,0.00019726,2]
[379070784,1755115858668,-500.0,0.00019726,2]
[379070785,1755115858679,-292.99278701,0.00019726,2]
[379070786,1755115858690,-460.0,0.00019726,2]
[379070787,1755115858702,-460.0,0.00019726,2]
[379070788,1755115858713,-460.0,0.00019726,2]
[379070789,1755115858724,-460.0,0.00019726,2]
[379070790,1755115858735,-460.0,0.00019726,2]
[379070791,1755115858746,-460.0,0.00019726,2]
[379070792,1755115858757,-499.24,0.00019726,2]
[379070793,1755115858768,-460.0,0.00019726,2]
[379070794,1755115858780,-460.0,0.00019726,2]
[379070795,1755115858791,-460.0,0.00019726,2]
[379070796,1755115858803,-460.0,0.00019726,2]
[379070797,1755115858816,-460.0,0.00019726,2]
[379070798,1755115858827,-460.0,0.00019726,2]
[379070799,1755115858839,-460.0,0.00019726,2]
[379070800,1755115858850,-1083.49,0.00019726,2]
[379070801,1755115858861,-634.17,0.00019726,2]
[379070802,1755115858872,-1683.37,0.00019726,2]
[379070803,1755115858884,-473.55281251,0.00019726,2]
[379070804,1755115858895,-1312.7,0.00019726,2]
[379070805,1755115858906,-552.5,0.00019726,2]
[379070806,1755115858918,-465.44377966,0.00019726,2]
[379070807,1755115858928,-460.0,0.00019726,2]
[379070808,1755115858939,-460.0,0.00019726,2]
[379070809,1755115858951,-460.0,0.00019726,2]
[379070810,1755115858961,-460.0,0.00019726,2]
[379070811,1755115858973,-150.74041562,0.00019726,2]
[379070812,1755115858984,-460.0,0.00019726,2]
[379070813,1755115858995,-460.0,0.00019726,2]
[379070814,1755115859006,-460.0,0.00019726,2]
[379070815,1755115859017,-460.0,0.00019726,2]
[379070816,1755115859028,-460.0,0.00019726,2]
[379070817,1755115859039,-460.0,0.00019726,2]
[379070818,1755115859050,-1170.68,0.00019726,2]
[379070819,1755115859062,-460.0,0.00019726,2]
[379070820,1755115859073,-445.5963132,0.00019726,2]
[379070821,1755115859085,-460.0,0.00019726,2]
[379070822,1755115859096,-460.0,0.00019726,2]
[379070823,1755115859108,-460.0,0.00019726,2]
[379070824,1755115859120,-460.0,0.00019726,2]
[379070825,1755115859131,-460.0,0.00019726,2]
[379070826,1755115859143,-454.0,0.00019726,2]
[379070827,1755115859155,-788.14,0.00019726,2]
[379070828,1755115859167,-460.0,0.00019726,2]
[379070829,1755115859180,-460.0,0.00019726,2]
[379070830,1755115859195,-460.0,0.00019726,2]
[379070831,1755115859206,-740.52,0.00019726,2]
[379070832,1755115859218,-460.0,0.00019726,2]
[379070833,1755115859229,-460.0,0.00019726,2]
[379070834,1755115859240,-1140.3,0.00019726,2]
[379070835,1755115859253,-460.0,0.00019726,2]
[379070836,1755115859264,-863.07,0.00019726,2]
[379070837,1755115859276,-408.34709287,0.00019726,2]
[379070838,1755115859287,-1663.95,0.00019726,2]
[379070839,1755115859299,-460.0,0.00019726,2]
[379070840,1755115859309,-961.59,0.00019726,2]
[379070841,1755115859320,-340.70545028,0.00019726,2]
[379070842,1755115859331,-579.66,0.00019726,2]
[379070843,1755115859343,-460.0,0.00019726,2]
[379070844,1755115859353,-460.0,0.00019726,2]
[379070845,1755115859365,-460.0,0.00019726,2]
[379070846,1755115859376,-460.0,0.00019726,2]
[379070847,1755115859387,-460.0,0.00019726,2]
[379070848,1755115859399,-1069.56,0.00019726,2]
[379070849,1755115859410,-460.0,0.00019726,2]
[379070850,1755115859421,-464.07017286,0.00019726,2]
[379070851,1755115859432,-460.0,0.00019726,2]
[379070852,1755115859443,-1437.38,0.00019726,2]
[379070853,1755115859455,-460.0,0.00019726,2]
[379070854,1755115859466,-460.0,0.00019726,2]
[379070855,1755115859477,-460.0,0.00019726,2]
[379070856,1755115859489,-460.0,0.00019726,2]
[379070857,1755115859501,-460.0,0.00019726,2]
[379070858,1755115859513,-460.0,0.00019726,2]
[379070859,1755115859524,-460.0,0.00019726,2]
[379070860,1755115859535,-346.61,0.00019726,2]
[379070861,1755115859547,-460.0,0.00019726,2]
[379070862,1755115859558,-460.0,0.00019726,2]
[379070863,1755115859569,-460.0,0.00019726,2]
[379070864,1755115859580,-187.12,0.00019726,2]
[379070865,1755115859591,-460.0,0.00019726,2]
[379070866,1755115859602,-460.0,0.00019726,2]
[379070867,1755115859613,-460.0,0.00019726,2]
[379070868,1755115859624,-460.0,0.00019726,2]
[379070869,1755115859635,-460.0,0.00019726,2]
[379070870,1755115859647,-460.0,0.00019726,2]
[379070871,1755115859658,-460.0,0.00019726,2]
[379070872,1755115859668,-460.0,0.00019726,2]
[379070873,1755115859680,-460.0,0.00019726,2]
[379070874,1755115859691,-460.0,0.00019726,2]
[379070875,1755115859703,-460.0,0.00019726,2]
[379070876,1755115859713,-460.0,0.00019726,2]
[379070877,1755115859724,-460.0,0.00019726,2]